{"text_format":"1","workbook":"xlsx","n_sheets":3,"sheets":["Instrucciones","Reformulación Presupuesto Ac","Resumen Presupuesto"],"not_rendered":{"charts":0,"images":5,"macros":1,"external_links":0,"defined_names":7,"comments":2,"pivot_tables":0},"unopened":[],"bounds":{"document_bytes":16777216,"sheet_cells":100000,"rows_first":2000,"rows_last":500,"rows_between":2000,"halvings":0,"cell_chars":16384,"cell_head_chars":4096},"cells_cut":0,"cells_raw":0,"read":"whole","date_system":"1900"}

{"sheet":"Instrucciones","index":0,"n_rows":24,"n_cols":10,"rows_kept":24,"cut":false,"hidden":false,"merged":[[24,1,24,16],[25,1,25,16],[1,9,1,11],[2,2,2,17],[4,2,4,17],[22,1,22,16],[23,1,23,16]]}
[]
[null,null,null,null,null,null,null,null,null,"Doc_básico3_presup_reformulado_Ac INSTRUCCIONES"]
[null,null,"SUBVENCIONES DEL AYUNTAMIENTO DE BARCELONA POR EL FORTALECIMIENTO DE LA ECONOMÍA SOCIAL Y SOLIDARIA Y POR LA INTERCOOPERACIÓN EN LA ESTRATEGIA #ESSBCN2030 - FORTALECEMOS LA ESS 2023"]
[]
[null,null,"Aspectos relevantes relacionados con la reformulación"]
[]
[]
[]
[]
[null,"1. Rellenar la pestaña \"Reformulación Presupuesto\" con los datos económicos del proyecto:"]
[null,"1.1  Rellenar los cuadros DATOS BÁSICOS-PREVISIÓN DE GASTOS DEL PROYECTO SUBVENCIONABLE INICIAL, con los datos económicos de la propuesta inicial con subvención otorgada."]
[null,"1.2  Rellenar r los cuadros DATOS BÁSICOS-PREVISIÓN DE GASTOS DEL PROYECTO REFORMULADO, con los datos económicos de la propuesta de reformulación."]
[null,"2. Revisar y llenar la pestaña \"Resumen Presupuesto\" con los datos económicos del proyecto:"]
[null,"3. Imprimir las hojas de las 2 pestañas (Reformulación presupuesto y Resumen Presupuesto). En formato pdf."]
[]
[]
[null,"Pulsa el icono para generar un documento PDF del libro"]
[]
[]
[]
[]
[]
[null,"4. Si la solicitud se presentó por vía telemática, es necesario que registre la documentación, telemáticamente, como trámite específico, dentro de la convocatoria específica como anexión de documentos adicionales y utilice el número de trámite que el sistema de registro le dio en el momento de la presentación de la solicitud de la subvención."]
[null,"5. En caso de que registre la documentación telemáticamente, como instancia genérica, mediante certificado digital, le recomendamos que avise a la dirección de correo electrónico subvencions_ec_solidaria@bcn.cat,para poder realizar un seguimiento, así como también en los casos que presente la documentación a través de una Oficina de Atención Ciudadana del Ayuntamiento, si no ha podido obtener el certificado digital (los requisitos para obtenerlo los encontrará en la Oficina Virtual de Trámites de la Sede Electrónica:https://seuelectronica.ajuntament.barcelona.cat/oficinavirtual/)."]

{"sheet":"Reformulación Presupuesto Ac","index":1,"n_rows":126,"n_cols":9,"rows_kept":126,"cut":false,"hidden":false,"merged":[[1,1,1,8],[18,0,18,3],[10,6,10,7],[6,2,6,5],[91,0,91,3],[94,0,94,3],[48,0,48,3],[3,0,4,8],[18,5,18,7],[100,0,100,3],[93,0,93,3],[102,0,102,3],[103,0,103,3],[104,0,104,3],[95,0,95,3],[96,0,96,3],[97,0,97,3],[98,0,98,3],[99,0,99,3],[101,0,101,3],[125,0,125,3],[109,0,109,3],[117,0,117,3],[118,0,118,3],[119,0,119,3],[110,0,110,3],[111,0,111,3],[120,0,120,3],[122,0,122,3],[112,0,112,3],[114,0,114,3],[115,0,115,3],[116,0,116,3],[105,0,105,3],[113,0,113,3],[121,0,121,3],[123,0,123,3],[124,0,124,3],[106,0,106,3],[107,0,107,3],[108,0,108,3]]}
[]
[null,"Reformulación presupuesto Modalidad Ac"]
[]
["Programa de subvenciones del Ayuntamiento de Barcelona para la reactivación y fortalecimiento de la Economía Social y Solidaria y el desarrollo de proyectos de intercooperación que desarrollan la Estrategia #ESSBCN2030"]
[]
[]
[]
["DATOS BÁSICOS"]
["Nombre de la persona física/ jurídica",null,{"$f":"+IF(H9>Dadesbasiques[[#This Row],[Columna1]],\"ALERTA: La quantia de la subvenció atorgada no pot superar el 80% de la despesa total del projecte a subvencionar\", \" \")","v":" "},null,null,"  "]
["NIF de la persona física/ jurídica",null,{"$f":"+IF(H10>Dadesbasiques[[#This Row],[Columna1]],\"ALERTA: La quantia de la subvenció atorgada no pot superar el 80% de la despesa total del projecte a subvencionar\", \" \")","v":" "}]
["Nombre del proyecto subvencionable",null,{"$f":"+IF(H11>Dadesbasiques[[#This Row],[Columna1]],\"ALERTA: La quantia de la subvenció atorgada no pot superar el 80% de la despesa total del projecte a subvencionar\", \" \")","v":" "},null,null,null,"DATOS BÁSICOS PROYECTO REFORMULADO"]
["Importe total del proyecto subvencionable",null,null,null,null,null,"Importe total del proyecto REFORMULADO"]
["Importe imputable a la subvención municipal",null,null,null,null,null,"Importe imputable a la subvención OTORGADA"]
["Importe de la aportación / Cofinanciación de la organización",{"$f":"+B12-B13","v":0},null,null,null,null,"Importe de la aportación / Cofinanciación de la organización",{"$f":"H12-H13","v":0}]
["% del importe solicitado respecto al total del proyecto subvencionable (*)",{"$f":"B13/B12","v":{"$error":"#DIV/0!"}},null,null,null,null,"% del importe solicitado respecto del total del proyecto subvencionado",{"$f":"H13/H12","v":{"$error":"#DIV/0!"}},{"$f":"+IF(H15>Dadesbasiques[[#This Row],[Columna1]],\"*Este porcentaje debe ser igual o menor al porcentaje subvencionado inicialmente.\",\" \")","v":{"$error":"#DIV/0!"}}]
["% del importe solicitado respecto del total del proyecto subvencionable",null,{"$f":"+IF(H16>Dadesbasiques[[#This Row],[Columna1]],\"ALERTA: La quantia de la subvenció atorgada no pot superar el 80% de la despesa total del projecte a subvencionar\", \" \")","v":" "}]
["Data fi del projecte subvencionat (dd/mm/aaaa)",null,{"$f":"+IF(H17>Dadesbasiques[[#This Row],[Columna1]],\"ALERTA: La quantia de la subvenció atorgada no pot superar el 80% de la despesa total del projecte a subvencionar\", \" \")","v":" "}]
[]
["PREVISIÓN DE GASTOS DEL PROYECTO SUBVENCIONABLE",null,null,null,null,"PREVISIÓN DE GASTOS DEL PROYECTO REFORMULADO"]
[]
["Ac1. Formación grupal para personas socias, trabajadoras y voluntarias de la empresa/organización,  de un mínimo de 10 personas y 10 horas"]
["PARTIDAS","Importe imputable a la subvención municipal","Importe de la aportación / Cofinanciamiento de la organización","Importe total del proyecto",null,"Importe imputable a la subvención municipal","Importe de la aportación / Cofinanciamiento de la organización","Importe total del proyecto"]
["AC1.D1.  Honorarios de les personas formadoras externas (precio máximo hora 60€/hora, incluido IRPF si procede, no incluye el IVA si la formación no está exenta)",{"$f":"SUM(B24:B26)","v":0},{"$f":"SUM(C24:C26)","v":0},{"$f":"SUM(DespesesProjecteAb1[[#This Row],[Importe imputable a la subvención municipal]],DespesesProjecteAb1[[#This Row],[Importe de la aportación / Cofinanciamiento de la organización]])","v":0},null,{"$f":"SUM(F24:F26)","v":0},{"$f":"SUM(G24:G26)","v":0},{"$f":"+F23+G23","v":0}]
[null,null,null,{"$f":"SUM(DespesesProjecteAb1[[#This Row],[Importe imputable a la subvención municipal]],DespesesProjecteAb1[[#This Row],[Importe de la aportación / Cofinanciamiento de la organización]])","v":0},null,null,null,{"$f":"+F24+G24","v":0}]
[null,null,null,{"$f":"SUM(DespesesProjecteAb1[[#This Row],[Importe imputable a la subvención municipal]],DespesesProjecteAb1[[#This Row],[Importe de la aportación / Cofinanciamiento de la organización]])","v":0},null,null,null,0]
[null,null,null,{"$f":"SUM(DespesesProjecteAb1[[#This Row],[Importe imputable a la subvención municipal]],DespesesProjecteAb1[[#This Row],[Importe de la aportación / Cofinanciamiento de la organización]])","v":0},null,null,null,0]
["AC1.D2.  Alquiler de bienes inmuebles vinculados directamente a la realización de la formación.",{"$f":"SUM(B28:B30)","v":0},{"$f":"SUM(C28:C30)","v":0},{"$f":"SUM(DespesesProjecteAb1[[#This Row],[Importe imputable a la subvención municipal]],DespesesProjecteAb1[[#This Row],[Importe de la aportación / Cofinanciamiento de la organización]])","v":0},null,{"$f":"SUM(F28:F30)","v":0},{"$f":"SUM(G28:G30)","v":0},0]
[null,null,null,{"$f":"SUM(DespesesProjecteAb1[[#This Row],[Importe imputable a la subvención municipal]],DespesesProjecteAb1[[#This Row],[Importe de la aportación / Cofinanciamiento de la organización]])","v":0},null,null,null,0]
[null,null,null,{"$f":"SUM(DespesesProjecteAb1[[#This Row],[Importe imputable a la subvención municipal]],DespesesProjecteAb1[[#This Row],[Importe de la aportación / Cofinanciamiento de la organización]])","v":0},null,null,null,0]
[null,null,null,{"$f":"SUM(DespesesProjecteAb1[[#This Row],[Importe imputable a la subvención municipal]],DespesesProjecteAb1[[#This Row],[Importe de la aportación / Cofinanciamiento de la organización]])","v":0},null,null,null,0]
["AC1.D3. Adquisición de materiales y bienes consumibles necesarios para la realización de la formación.",{"$f":"SUM(B32:B34)","v":0},{"$f":"SUM(C32:C34)","v":0},{"$f":"SUM(DespesesProjecteAb1[[#This Row],[Importe imputable a la subvención municipal]],DespesesProjecteAb1[[#This Row],[Importe de la aportación / Cofinanciamiento de la organización]])","v":0},null,{"$f":"SUM(F32:F34)","v":0},{"$f":"SUM(G32:G34)","v":0},0]
[null,null,null,{"$f":"SUM(DespesesProjecteAb1[[#This Row],[Importe imputable a la subvención municipal]],DespesesProjecteAb1[[#This Row],[Importe de la aportación / Cofinanciamiento de la organización]])","v":0},null,null,null,0]
[null,null,null,{"$f":"SUM(DespesesProjecteAb1[[#This Row],[Importe imputable a la subvención municipal]],DespesesProjecteAb1[[#This Row],[Importe de la aportación / Cofinanciamiento de la organización]])","v":0},null,null,null,0]
[null,null,null,{"$f":"SUM(DespesesProjecteAb1[[#This Row],[Importe imputable a la subvención municipal]],DespesesProjecteAb1[[#This Row],[Importe de la aportación / Cofinanciamiento de la organización]])","v":0},null,null,null,0]
["AC1.D4. Transporte–mensajería directamente vinculada con la realización de la formación.",{"$f":"SUM(B36:B38)","v":0},{"$f":"SUM(C36:C38)","v":0},{"$f":"SUM(DespesesProjecteAb1[[#This Row],[Importe imputable a la subvención municipal]],DespesesProjecteAb1[[#This Row],[Importe de la aportación / Cofinanciamiento de la organización]])","v":0},null,{"$f":"SUM(F36:F38)","v":0},{"$f":"SUM(G36:G38)","v":0},0]
[null,null,null,{"$f":"SUM(DespesesProjecteAb1[[#This Row],[Importe imputable a la subvención municipal]],DespesesProjecteAb1[[#This Row],[Importe de la aportación / Cofinanciamiento de la organización]])","v":0},null,null,null,0]
[null,null,null,{"$f":"SUM(DespesesProjecteAb1[[#This Row],[Importe imputable a la subvención municipal]],DespesesProjecteAb1[[#This Row],[Importe de la aportación / Cofinanciamiento de la organización]])","v":0},null,null,null,0]
[null,null,null,{"$f":"SUM(DespesesProjecteAb1[[#This Row],[Importe imputable a la subvención municipal]],DespesesProjecteAb1[[#This Row],[Importe de la aportación / Cofinanciamiento de la organización]])","v":0},null,null,null,0]
["AC1.D5.  Seguros",{"$f":"SUM(B40:B42)","v":0},{"$f":"SUM(C40:C42)","v":0},{"$f":"SUM(DespesesProjecteAb1[[#This Row],[Importe imputable a la subvención municipal]],DespesesProjecteAb1[[#This Row],[Importe de la aportación / Cofinanciamiento de la organización]])","v":0},null,{"$f":"SUM(F40:F42)","v":0},{"$f":"SUM(G40:G42)","v":0},{"$f":"+F39+G39","v":0}]
[null,null,null,{"$f":"SUM(DespesesProjecteAb1[[#This Row],[Importe imputable a la subvención municipal]],DespesesProjecteAb1[[#This Row],[Importe de la aportación / Cofinanciamiento de la organización]])","v":0},null,null,null,0]
[null,null,null,{"$f":"SUM(DespesesProjecteAb1[[#This Row],[Importe imputable a la subvención municipal]],DespesesProjecteAb1[[#This Row],[Importe de la aportación / Cofinanciamiento de la organización]])","v":0},null,null,null,0]
[null,null,null,{"$f":"SUM(DespesesProjecteAb1[[#This Row],[Importe imputable a la subvención municipal]],DespesesProjecteAb1[[#This Row],[Importe de la aportación / Cofinanciamiento de la organización]])","v":0},null,null,null,0]
["AC1.D6. Viajes y desplazamientos imputables a las actividades del proyecto ( máximo 10% de la subvención)",{"$f":"SUM(B44:B46)","v":0},{"$f":"SUM(C44:C46)","v":0},{"$f":"SUM(DespesesProjecteAb1[[#This Row],[Importe imputable a la subvención municipal]],DespesesProjecteAb1[[#This Row],[Importe de la aportación / Cofinanciamiento de la organización]])","v":0},null,{"$f":"SUM(F44:F46)","v":0},{"$f":"SUM(G44:G46)","v":0},0,{"$f":"+IF(F43>H$13*0.1,\"ALERTA: Máximo 10% del importe imputable a la subvención municipal\", \" \")","v":" "}]
[null,null,null,{"$f":"SUM(DespesesProjecteAb1[[#This Row],[Importe imputable a la subvención municipal]],DespesesProjecteAb1[[#This Row],[Importe de la aportación / Cofinanciamiento de la organización]])","v":0},null,null,null,0]
[null,null,null,{"$f":"SUM(DespesesProjecteAb1[[#This Row],[Importe imputable a la subvención municipal]],DespesesProjecteAb1[[#This Row],[Importe de la aportación / Cofinanciamiento de la organización]])","v":0},null,null,null,0]
[null,null,null,{"$f":"SUM(DespesesProjecteAb1[[#This Row],[Importe imputable a la subvención municipal]],DespesesProjecteAb1[[#This Row],[Importe de la aportación / Cofinanciamiento de la organización]])","v":0},null,null,null,0]
["TOTAL DE GASTOS PREVISTOS Ac1",{"$f":"B35+B31+B27+B23+B39+B43","v":0},{"$f":"C35+C31+C27+C23+C39+C43","v":0},{"$f":"D35+D31+D27+D23+D39+D43","v":0},null,{"$f":"F35+F31+F27+F23+F39+F43","v":0},{"$f":"G35+G31+G27+G23+G39+G43","v":0},{"$f":"H35+H31+H27+H23+H39+H43","v":0}]
[]
["Ac2. Gastos de matriculación del personal de la entidad en acciones formativas externas o bien gastos salariales del personal de la empresa/organización en la participación en acciones formativas públicas o comunitarias sin coste de matriculación. La empresa/organización tiene que optar entre solicitar subvención por el gasto de matriculación externa o solicitar subvención para gastos salariales en el caso de que la formación no tenga coste."]
["PARTIDAS","Importe imputable a la subvención municipal","Importe de la aportación / Cofinanciamiento de la entidad","Importe total del proyecto",null,"Importe imputable a la subvención municipal","Importe de la aportación / Cofinanciamiento de la organización","Importe total del proyecto"]
["AC2.D1. Gastos de matriculación en acciones formativas externas (mínimo  150 horas y/o coste mínimo de 600€ por cada participante)",{"$f":"SUM(B52:B55)","v":0},{"$f":"SUM(C52:C55)","v":0},{"$f":"SUM(DespesesProjecteAb2[[#This Row],[Importe imputable a la subvención municipal]],DespesesProjecteAb2[[#This Row],[Importe de la aportación / Cofinanciamiento de la entidad]])","v":0},null,{"$f":"SUM(F52:F55)","v":0},{"$f":"SUM(G52:G55)","v":0},{"$f":"+F51+G51","v":0}]
[null,null,null,{"$f":"SUM(DespesesProjecteAb2[[#This Row],[Importe imputable a la subvención municipal]],DespesesProjecteAb2[[#This Row],[Importe de la aportación / Cofinanciamiento de la entidad]])","v":0},null,null,null,{"$f":"+F52+G52","v":0}]
[null,null,null,{"$f":"SUM(DespesesProjecteAb2[[#This Row],[Importe imputable a la subvención municipal]],DespesesProjecteAb2[[#This Row],[Importe de la aportación / Cofinanciamiento de la entidad]])","v":0},null,null,null,0]
[null,null,null,{"$f":"SUM(DespesesProjecteAb2[[#This Row],[Importe imputable a la subvención municipal]],DespesesProjecteAb2[[#This Row],[Importe de la aportación / Cofinanciamiento de la entidad]])","v":0},null,null,null,0]
[null,null,null,{"$f":"SUM(DespesesProjecteAb2[[#This Row],[Importe imputable a la subvención municipal]],DespesesProjecteAb2[[#This Row],[Importe de la aportación / Cofinanciamiento de la entidad]])","v":0},null,null,null,0]
["AC2.D2. Coste salarial personas trabajadoras que participan en acciones formativas de las administraciones públicas, universidades y ateneos cooperativos y equivalentes a las horas efectivamente dedicadas en esta formación (máximo 30% subvención) ",{"$f":"SUM(B57:B60)","v":0},{"$f":"SUM(C57:C60)","v":0},{"$f":"SUM(DespesesProjecteAb2[[#This Row],[Importe imputable a la subvención municipal]],DespesesProjecteAb2[[#This Row],[Importe de la aportación / Cofinanciamiento de la entidad]])","v":0},null,{"$f":"SUM(F57:F60)","v":0},{"$f":"SUM(G57:G60)","v":0},0,{"$f":"+IF(F56>H$13*0.3,\"ALERTA: Máximo 10% del importe imputable a la subvención municipal\", \" \")","v":" "}]
[null,null,null,{"$f":"SUM(DespesesProjecteAb2[[#This Row],[Importe imputable a la subvención municipal]],DespesesProjecteAb2[[#This Row],[Importe de la aportación / Cofinanciamiento de la entidad]])","v":0},null,null,null,0]
[null,null,null,{"$f":"SUM(DespesesProjecteAb2[[#This Row],[Importe imputable a la subvención municipal]],DespesesProjecteAb2[[#This Row],[Importe de la aportación / Cofinanciamiento de la entidad]])","v":0},null,null,null,0]
[null,null,null,{"$f":"SUM(DespesesProjecteAb2[[#This Row],[Importe imputable a la subvención municipal]],DespesesProjecteAb2[[#This Row],[Importe de la aportación / Cofinanciamiento de la entidad]])","v":0},null,null,null,0]
[null,null,null,{"$f":"SUM(DespesesProjecteAb2[[#This Row],[Importe imputable a la subvención municipal]],DespesesProjecteAb2[[#This Row],[Importe de la aportación / Cofinanciamiento de la entidad]])","v":0},null,null,null,0]
["TOTAL GASTOS PREVISTOS Ac2",{"$f":"B56+B51","v":0},{"$f":"C56+C51","v":0},{"$f":"D56+D51","v":0},null,{"$f":"F56+F51","v":0},{"$f":"G56+G51","v":0},{"$f":"H56+H51","v":0}]
[]
["Ac3. Prácticas de las personas estudiantes universitarias y de formación dual de FP en entidades y empresas de la ESS"]
["PARTIDAS","Importe imputable a la subvención municipal","Importe de la aportación / Cofinanciación de la organización","Importe total del proyecto",null,"Importe imputable a la subvención municipal","Importe de la aportación / Cofinanciamiento de la organización","Importe total del proyecto"]
["\nAC3.D1.Gastos de ayuda económica -beca- de la persona estudiante en prácticas (duración mínima 400 horas, y coste bruto hora: mínimo de y coste bruto hora: de 6€/hora en prácticas universitarias, y mínimo de acuerdo con la normativa específica Dep. Educación en FP dual\n",{"$f":"SUM(B66:B69)","v":0},{"$f":"SUM(C66:C69)","v":0},{"$f":"SUM(DespesesProjecteAb14[[#This Row],[Importe imputable a la subvención municipal]],DespesesProjecteAb14[[#This Row],[Importe de la aportación / Cofinanciación de la organización]])","v":0},null,{"$f":"SUM(F66:F69)","v":0},{"$f":"SUM(G66:G69)","v":0},{"$f":"+F65+G65","v":0}]
[null,null,null,{"$f":"SUM(DespesesProjecteAb14[[#This Row],[Importe imputable a la subvención municipal]],DespesesProjecteAb14[[#This Row],[Importe de la aportación / Cofinanciación de la organización]])","v":0},null,null,null,{"$f":"+F66+G66","v":0}]
[null,null,null,{"$f":"SUM(DespesesProjecteAb14[[#This Row],[Importe imputable a la subvención municipal]],DespesesProjecteAb14[[#This Row],[Importe de la aportación / Cofinanciación de la organización]])","v":0},null,null,null,0]
[null,null,null,{"$f":"SUM(DespesesProjecteAb14[[#This Row],[Importe imputable a la subvención municipal]],DespesesProjecteAb14[[#This Row],[Importe de la aportación / Cofinanciación de la organización]])","v":0},null,null,null,0]
[null,null,null,{"$f":"SUM(DespesesProjecteAb14[[#This Row],[Importe imputable a la subvención municipal]],DespesesProjecteAb14[[#This Row],[Importe de la aportación / Cofinanciación de la organización]])","v":0},null,null,null,0]
["AC3.D2. Gastos de seguridad social del alumnado en prácticas. ",{"$f":"SUM(B71:B74)","v":0},{"$f":"SUM(C71:C74)","v":0},{"$f":"SUM(DespesesProjecteAb14[[#This Row],[Importe imputable a la subvención municipal]],DespesesProjecteAb14[[#This Row],[Importe de la aportación / Cofinanciación de la organización]])","v":0},null,{"$f":"SUM(F71:F74)","v":0},{"$f":"SUM(G71:G74)","v":0},0]
[null,null,null,{"$f":"SUM(DespesesProjecteAb14[[#This Row],[Importe imputable a la subvención municipal]],DespesesProjecteAb14[[#This Row],[Importe de la aportación / Cofinanciación de la organización]])","v":0},null,null,null,0]
[null,null,null,{"$f":"SUM(DespesesProjecteAb14[[#This Row],[Importe imputable a la subvención municipal]],DespesesProjecteAb14[[#This Row],[Importe de la aportación / Cofinanciación de la organización]])","v":0},null,null,null,0]
[null,null,null,{"$f":"SUM(DespesesProjecteAb14[[#This Row],[Importe imputable a la subvención municipal]],DespesesProjecteAb14[[#This Row],[Importe de la aportación / Cofinanciación de la organización]])","v":0},null,null,null,0]
[null,null,null,{"$f":"SUM(DespesesProjecteAb14[[#This Row],[Importe imputable a la subvención municipal]],DespesesProjecteAb14[[#This Row],[Importe de la aportación / Cofinanciación de la organización]])","v":0},null,null,null,0]
["AC3.D3. Gastos del contrato laboral de formación dual, modalidad de contrato de formación y aprendizaje.",{"$f":"SUM(B76:B79)","v":0},{"$f":"SUM(C76:C79)","v":0},{"$f":"SUM(DespesesProjecteAb14[[#This Row],[Importe imputable a la subvención municipal]],DespesesProjecteAb14[[#This Row],[Importe de la aportación / Cofinanciación de la organización]])","v":0},null,{"$f":"SUM(F76:F79)","v":0},{"$f":"SUM(G76:G79)","v":0},0]
[null,null,null,{"$f":"SUM(DespesesProjecteAb14[[#This Row],[Importe imputable a la subvención municipal]],DespesesProjecteAb14[[#This Row],[Importe de la aportación / Cofinanciación de la organización]])","v":0},null,null,null,0]
[null,null,null,{"$f":"SUM(DespesesProjecteAb14[[#This Row],[Importe imputable a la subvención municipal]],DespesesProjecteAb14[[#This Row],[Importe de la aportación / Cofinanciación de la organización]])","v":0},null,null,null,0]
[null,null,null,{"$f":"SUM(DespesesProjecteAb14[[#This Row],[Importe imputable a la subvención municipal]],DespesesProjecteAb14[[#This Row],[Importe de la aportación / Cofinanciación de la organización]])","v":0},null,null,null,0]
[null,null,null,{"$f":"SUM(DespesesProjecteAb14[[#This Row],[Importe imputable a la subvención municipal]],DespesesProjecteAb14[[#This Row],[Importe de la aportación / Cofinanciación de la organización]])","v":0},null,null,null,0]
["AC3.D4. Gastos de gestión vinculados a la tramitación del Convenio de Cooperación Educativa o el Acuerdo de Formación de Colaboración/Contrato de formación y aprendizaje.    ",{"$f":"SUM(B81:B84)","v":0},{"$f":"SUM(C81:C84)","v":0},{"$f":"SUM(DespesesProjecteAb14[[#This Row],[Importe imputable a la subvención municipal]],DespesesProjecteAb14[[#This Row],[Importe de la aportación / Cofinanciación de la organización]])","v":0},null,{"$f":"SUM(F81:F84)","v":0},{"$f":"SUM(G81:G84)","v":0},0]
[null,null,null,{"$f":"SUM(DespesesProjecteAb14[[#This Row],[Importe imputable a la subvención municipal]],DespesesProjecteAb14[[#This Row],[Importe de la aportación / Cofinanciación de la organización]])","v":0},null,null,null,{"$f":"+F81+G81","v":0}]
[null,null,null,{"$f":"SUM(DespesesProjecteAb14[[#This Row],[Importe imputable a la subvención municipal]],DespesesProjecteAb14[[#This Row],[Importe de la aportación / Cofinanciación de la organización]])","v":0},null,null,null,0]
[null,null,null,{"$f":"SUM(DespesesProjecteAb14[[#This Row],[Importe imputable a la subvención municipal]],DespesesProjecteAb14[[#This Row],[Importe de la aportación / Cofinanciación de la organización]])","v":0},null,null,null,0]
[null,null,null,{"$f":"SUM(DespesesProjecteAb14[[#This Row],[Importe imputable a la subvención municipal]],DespesesProjecteAb14[[#This Row],[Importe de la aportación / Cofinanciación de la organización]])","v":0},null,null,null,0]
["TOTAL GASTOS PREVISTOS Ac3",{"$f":"B65+B70+B75+B80","v":0},{"$f":"C65+C70+C75+C80","v":0},{"$f":"D65+D70+D75+D80","v":0},null,{"$f":"F65+F70+F75+F80","v":0},{"$f":"G65+G70+G75+G80","v":0},{"$f":"H65+H70+H75+H80","v":0}]
["TOTAL GASTOS PREVISTOS DEL PROYECTO SUBVENCIONABLE (Ac1 + Ac2 + Ac3) ",{"$f":"B47+B61+B85","v":0},{"$f":"C47+C61+C85","v":0},{"$f":"D47+D61+D85","v":0},null,{"$f":"F47+F61+F85","v":0},{"$f":"G47+G61+G85","v":0},{"$f":"H47+H61+H85","v":0}]
[]
[]
[]
[]
[]
[]
[]
["Modalidad Ac: Formación: Innovación y formación para la mejora de la gestión y la apertura de nuevas líneas de negocio."]
["1. La cuantía de la subvención otorgada no superará el 80% del gasto total del proyecto a subvencionar."]
["2.  Las solicitudes pueden contener una propuesta de proyecto de formación que contenga las tres submodalidades (Ac1, Ac2 i Ac3), dos de ellas o bien tan sólo una.   "]
["3.  En todo caso, el importe máximo de subvención, tanto si la solicitud contiene una, dos o tres submodalidades será de 6.000€."]
["4. En el caso que la solicitud presentada sobrepase el importe máximo, se considerará como importe solicitado el máximo establecido en la convocatoria."]
["5. En ningún caso se consideran Gastos subvencionables:\n> Los impuestos indirectos que sean susceptibles de recuperación o compensación.\n> Los gastos de inversión, incluidas en la adquisiciones de bienes inmuebles.\n> Los gastos realizados con fecha anterior al inicio del proyecto y fecha posterior a la finalización del proyecto.\n> Otros gastos que se indiquen en la convocatoria.  \n"]
["6. No son imputables en esta modalidad los gastos indirectos, detallados en el apartado 13.3. de las bases reguladoras."]
["7. La retribución de las personas contratadas en el marco del proyecto subvencionado no  puede ser inferior al Salario Mínimo Interprofesional (SMI), ni al estipulado en el correspondiente convenio o marco normativo de referencia (punto 7 de les bases 2021: requisitos de los proyectos)."]
["8. Los proyectos subvencionados han de fomentar actividades de interés público o social, que deberán  ser gratuitos para las personas participantes o en ningún caso el precio ha de suponer un obstáculo para su participación, buscando otras formas de acceso para personas con dificultades económicas. En el caso que exista algún tipo de lucro, se tendrá que revertir en las propias actividades subvencionadas. "]
["9. El Ayuntamiento de Barcelona y sus entidades municipales en ningún caso subvencionaran el mismo proyecto, ejecutado durante el mismo periodo, por ningún otro procedimiento de concesión que no sea el regulado por las bases reguladoras."]
["10. El/la beneficiario/a no podrá alterar en ningún caso el destino de las subvenciones concedidas."]
["Submodalidad Ac1: Formación grupal de personas socias, trabajadoras y voluntarias de la empresa organización, de un mínimo de 10 personas y de 10 horas"]
["1. El precio máximo hora de los honorarios de las personas formadoras externas se limita en 60€/hora, incluido IRPF, si procede pero no incluye el IVA en caso que la formación  no esté exenta de este impuesto."]
["2. Los gastos de viajes y desplazamientos vinculados a la realización de la formación e imputables a las actividades del proyecto subvencionable se limitan a un máximo de un 10% del importe de subvención."]
["3. La duración mínima de la formación grupal se establece en 10 horas para cada persona participante y el mínimo de participación se establece en 10 persones. Será exigible la hoja de firmas de las personas participantes en la acción grupal."]
["4. Será necesario justificar la contribución directa de las acciones en la mejora del proyecto empresarial."]
["5. Se podrán organizar sesiones de formación compartidas por diferentes entidades de Economía Social y Solidaria, para optimizar recursos y tiempo destinado a la realización de las acciones, y favorecer la intercooperación"]
["6. Los materiales producidos: de difusión, estudios, informes o materiales didácticos utilizados, etc. en el caso de tratarse de gasto elegible de la subvención, deberán tener licencia Creative Commons -Compartir Igual- (share a like)  y no podrá tener la condición-Sin Obras Derivadas- (no derivate Works).   "]
["Submodalidad Ac2: Gasto de matriculación del personal de la organización en acciones formativas externas o bien, gastos salariales del personal de la empresa/ organización en la participación en acciones formativas públicas o comunitarias sin coste de matriculación. "]
["1. La formación a subvencionar ha de tener una duración mínima de 150 horas y/o un coste mínimo de 600€ por cada participante. "]
["2. Para justificar los gastos salariales de las personas trabajadoras de la organización beneficiaria de la subvención, la duración  mínima de las formaciones de todas las personas participantes tendrá que ser de mínimo 40h entre todas las personas participantes de la empresa/organización."]
["3. Será necesario acreditar la asistencia o superación de las actividades formativas en el periodo de justificación, mediante certificado de la entidad proveedora de la formación donde consten las horas, fechas y persona o personas formadas de la empresa/organización. "]
["4. Los gastos salariales de las personas trabajadoras de la organización beneficiaria, Los gastos salariales de las personas trabajadoras de la organización beneficiaria, se limitan a un máximo de un 30% del importe de la subvención, solo en los casos que participen en acciones formativas de las administraciones públicas, universidades y ateneos cooperativos y equivalentes  a las horas efectivamente dedicadas a esta formación."]
["5. Se deberá actualizar la contribución directa de las acciones en la mejoras del proyecto empresarial."]
["Submodalidad Ac3: Prácticas de estudiantes universitarios y de formación dual de FP en entidades y empresas de la ESS"]
["1.  Será exigible el convenio de Cooperación Educativa con la universidad respectiva, o bien el Acuerdo Formativo de Colaboración ( en el caso de beca) o el Contrato de formación y aprendizaje con el Centro de Formación Profesional correspondiente, en el momento de presentación de la justificación."]
["2.  El alumnado beneficiario han de ser personas residentes en la ciudad de Barcelona o estarán matriculados en universidades o centros de formación de la ciudad de Barcelona."]
["3.  El programa de prácticas del alumnado ha de ser de una duración mínima de 400 horas."]
["4.  Solo se puede presentar una solicitud para un sitio de prácticas de la organización solicitante. "]
["5.  Se deberá dar de alta al alumno en la seguridad social como alumno en prácticas (tanto en prácticas curriculares como extracurriculares universitarias como para los alumnos de FP o formación dual-modalidad beca-)."]
["6.  Se deberá remunerar al alumno en prácticas universitarias (curriculares o extracurriculares)-con un coste bruto hora mínimo de 6€/hora o superior."]
["7.  Se deberá remunerar al alumno según la modalidad FP dual escogida con un mínimo de acuerdo a la normativa específica que establece el Departamento de Educación de la Generalitat de Cataluña o superior. "]
["8.  La formalización de las prácticas, el desarrollo del contenido, evaluación y seguimiento se ajustará a la normativa vigente del Departamento de Educación de la Generalitat de Cataluña y otras normas que le sean de aplicación.  "]

{"sheet":"Resumen Presupuesto","index":2,"n_rows":25,"n_cols":11,"rows_kept":25,"cut":false,"hidden":false,"merged":[[27,1,27,11],[24,7,24,9],[5,9,6,9],[1,2,1,7],[4,0,4,1],[23,7,23,8],[5,0,6,1],[5,2,6,2],[5,3,6,3],[5,4,6,4],[5,6,6,7],[5,8,6,8],[7,0,13,0],[14,0,16,0],[17,0,21,0],[18,6,18,7],[21,7,21,8],[3,0,3,7]]}
[]
[null,null,"Resumen presupuesto modalidad Ac"]
[]
["Programa de subvenciones del Ayuntamiento de Barcelona para la reactivación y fortalecimiento de la Economía Social y Solidaria y el desarrollo de proyectos de intercooperación que desarrollan la Estrategia #ESSBCN2030",null,null,null,null,null,null,null,null,"MODALIDAD Ac1-Ac2-Ac3"]
["GASTOS PREVISTOS",null,null,null,null,null,"INGRESOS PREVISTOS"]
["Gastos directos \n(aquellos que se identifican directamente con el proyecto)",null,"Previsión inicial coste total","Previsión reformulada coste total","Importe imputado a la subvención otorgada",null,"Ingresos previstos",null,"Previsión inicial ingreso total","Previsión reformulada ingreso total"]
[]
["Ac1","1.  Honorarios de las personas formadoras externas (precio máximo hora 60€/hora, incluido IRPF si corresponde, no incluido IVA si formación no está exenta)",{"$f":"+'Reformulación Presupuesto Ac'!D23","v":0},{"$f":"+'Reformulación Presupuesto Ac'!H23","v":0},{"$f":"+'Reformulación Presupuesto Ac'!F23","v":0},{"$f":"+IF(D8<0,\"No s'admeten valors negatius\",\"\")","v":""},"A.","Subvención municipal (importe solicitado a la instancia/otorgado)"]
[null,"2.  Alquiler de bienes inmuebles vinculados directamente a la realización de la formación",{"$f":"+'Reformulación Presupuesto Ac'!D27","v":0},{"$f":"+'Reformulación Presupuesto Ac'!H27","v":0},{"$f":"+'Reformulación Presupuesto Ac'!F27","v":0},{"$f":"+IF(D9<0,\"No s'admeten valors negatius\",\"\")","v":""},"B.","Subvenciones de otras administraciones",null,null,{"$f":"+IF(J9<0,\"No s'admeten valors negatius\",\"\")","v":""}]
[null,"3.  Adquisición de materiales i bienes consumibles necesarios para la realización de la formación",{"$f":"+'Reformulación Presupuesto Ac'!D31","v":0},{"$f":"+'Reformulación Presupuesto Ac'!H31","v":0},{"$f":"+'Reformulación Presupuesto Ac'!F31","v":0},{"$f":"+IF(D10<0,\"No s'admeten valors negatius\",\"\")","v":""},"C.","Subvenciones de entes privados",null,null,""]
[null,"4.  Transporte – mensajería directamente vinculado con la realización de la formación",{"$f":"+'Reformulación Presupuesto Ac'!D39","v":0},{"$f":"+'Reformulación Presupuesto Ac'!H39","v":0},{"$f":"+'Reformulación Presupuesto Ac'!F39","v":0},{"$f":"+IF(D11<0,\"No s'admeten valors negatius\",\"\")","v":""},"D.","Recursos propios de la organización aplicados al proyecto"]
[null,"5.  Seguros",{"$f":"+'Reformulación Presupuesto Ac'!D39","v":0},{"$f":"+'Reformulación Presupuesto Ac'!H39","v":0},{"$f":"+'Reformulación Presupuesto Ac'!F39","v":0},null,"E.","Taquillaje"]
[null,"6.  Viajes y desplazamientos imputables a las actividades del proyecto  (máximo 10% subvención) ",{"$f":"+'Reformulación Presupuesto Ac'!D43","v":0},{"$f":"+'Reformulación Presupuesto Ac'!H43","v":0},{"$f":"+'Reformulación Presupuesto Ac'!F43","v":0},null,"F.","Cuotas de inscripción"]
[null,"Subtotal gastos directos   Ac1",{"$f":"SUM(C8:C13)","v":0},{"$f":"SUM(D8:D13)","v":0},{"$f":"SUM(E8:E13)","v":0},null,"G.","Venta de productos"]
["Ac2","1. Gastos de matriculación en acciones formativas externas (mínimo de 150 horas y/o coste mínimo de 600€ para cada participante)",{"$f":"+'Reformulación Presupuesto Ac'!D51","v":0},{"$f":"+'Reformulación Presupuesto Ac'!H51","v":0},{"$f":"+'Reformulación Presupuesto Ac'!F51","v":0},null,"H","Publicidad y/o Esponsorización"]
[null,"2. Coste salarial personas trabajadoras que participen en acciones formativas de las administraciones públicas, universidades y ateneos cooperativos y equivalentes a las horas efectivamente dedicadas a esta formación (máximo 30% subvención)",{"$f":"+'Reformulación Presupuesto Ac'!D56","v":0},{"$f":"+'Reformulación Presupuesto Ac'!H56","v":0},{"$f":"+'Reformulación Presupuesto Ac'!F56","v":0},null,"I.","Otros ingresos"]
[null,"Subtotal gastos directos   Ac2",{"$f":"SUM(C15:C16)","v":0},{"$f":"SUM(D15:D16)","v":0},{"$f":"SUM(E15:E16)","v":0},null,null,"Total Ingresos",{"$f":"SUM(I8:I16)","v":0},{"$f":"SUM(J8:J16)","v":0}]
["Ac3","1.  Gastos de ayuda económica–beca- de la persona estudiante en prácticas (duración mínima 400 horas, y coste bruto hora: mínimo de 6€/hora en prácticas universitarias, y mínimo de acuerdo con la normativa específica Dep. Educación en FP dual)",{"$f":"+'Reformulación Presupuesto Ac'!D65","v":0},{"$f":"+'Reformulación Presupuesto Ac'!H65","v":0},{"$f":"+'Reformulación Presupuesto Ac'!F65","v":0}]
[null,"2.  Gastos de seguridad social del alumno/a en prácticas",{"$f":"+'Reformulación Presupuesto Ac'!D70","v":0},{"$f":"+'Reformulación Presupuesto Ac'!H70","v":0},{"$f":"+'Reformulación Presupuesto Ac'!F70","v":0},null,"Ingresos menos gastos",null,{"$f":"+I17-C23","v":0},{"$f":"+J17-D23","v":0}]
[null,"3.  Gastos del contrato laboral de la formación dual, modalidad contrato de formación y aprendizaje",{"$f":"+'Reformulación Presupuesto Ac'!D75","v":0},{"$f":"+'Reformulación Presupuesto Ac'!H75","v":0},{"$f":"+'Reformulación Presupuesto Ac'!F75","v":0}]
[null,"4.  Gastos de gestión asociados a la tramitación del Convenio de Cooperación Educativa o el Acuerdo Formativo de Colaboración/ Contrato de formación i aprendizaje.",{"$f":"+'Reformulación Presupuesto Ac'!D80","v":0},{"$f":"+'Reformulación Presupuesto Ac'!H80","v":0},{"$f":"+'Reformulación Presupuesto Ac'!F80","v":0},{"$f":"+IF(D21<0,\"No s'admeten valors negatius\",\"\")","v":""}]
[null,"Subtotal gastos directos   Ac3",{"$f":"SUM(C18:C21)","v":0},{"$f":"SUM(D18:D21)","v":0},{"$f":"SUM(E18:E21)","v":0},null,null,"% subvencionado inicialmente",null,{"$f":"I8/C23","v":{"$error":"#DIV/0!"}}]
["Ac","Total Gastos Ac",{"$f":"+C14+C17+C22","v":0},{"$f":"+D14+D17+D22","v":0},{"$f":"+E14+E17+E22","v":0}]
[null,null,null,null,null,null,null,"% subvencionado después de reformular",null,{"$f":"+J8/D23","v":{"$error":"#DIV/0!"}},"*"]
[null,null,null,null,null,null,null,"* Este porcentaje debe ser igual o menor al porcentaje subvencionado inicialmente."]